[Event "Championnat du monde jeunes U12"]
[Date "2024.11.20"]
[White "Nguyen Le Nguyen"]
[Black "Sun, Kevin"]
[WhiteElo "1782"]
[BlackElo "1966"]
[Round "6.36"]
[Result "0-1"]
[TimeControl "5400+30"]

1. e4 {[%clk 1:30:58]} 1... c5 {[%clk 1:30:57]} 2. Nc3 {[%clk 1:31:18]} 2... Nc6
{[%clk 1:31:22]} 3. Bb5 {[%clk 1:31:33]} 3... Nd4 {[%clk 1:31:45]} 4. Nf3 {[%clk
1:31:44]} 4... e6 {[%clk 1:31:56]} 5. O-O {[%clk 1:30:46]} 5... a6 {[%clk
1:32:09]} 6. Bd3 {[%clk 1:30:59]} 6... Nxf3+ {[%clk 1:32:20]} 7. Qxf3 {[%clk
1:31:18]} 7... Bd6 {[%clk 1:32:38]} 8. b3 {[%clk 1:00:32]} 8... Ne7 {[%clk
1:31:33]} 9. Qg4 {[%clk 0:58:05]} 9... h5 {[%clk 1:20:17]} 10. Qg5 {[%clk
0:53:40]} 10... Qc7 {[%clk 1:13:48]} 11. f4 {[%clk 0:48:39]} 11... Ng6 {[%clk
1:08:54]} 12. e5 {[%clk 0:48:02]} 12... Be7 {[%clk 1:09:08]} 13. Qg3 {[%clk
0:48:24]} 13... Rh6 {[%clk 1:07:46]} 14. Ne4 {[%clk 0:29:30]} 14... b6 {[%clk
0:52:31]} 15. Bb2 {[%clk 0:23:22]} 15... h4 {[%clk 0:35:52]} 16. Qg4 {[%clk
0:08:07]} 16... h3 {[%clk 0:34:14]} 17. f5 {[%clk 0:05:12]} 17... hxg2 {[%clk
0:30:05]} 18. Rf2 {[%clk 0:04:29]} 18... Nxe5 19. Qxg7 {[%clk 0:04:10]} 19...
Nf3+ {[%clk 0:17:52]} 20. Kxg2 {[%clk 0:04:36]} 20... Bf8 {[%clk 0:09:35]} 21.
Qg8 {[%clk 0:04:30]} 21... Nd4 {[%clk 0:08:58]} 22. Kg1 {[%clk 0:00:59]} 22...
Bb7 {[%clk 0:08:32]} 23. Ng5 {[%clk 0:00:50]} 23... O-O-O {[%clk 0:06:13]} 24.
Nxf7 {[%clk 0:00:59]} 24... Rxh2 {[%clk 0:06:16]} 25. Rxh2 {[%clk 0:00:39]}
25... Nf3+ {[%clk 0:06:43]} 26. Kf2 {[%clk 0:00:39]} 26... Qxh2+ {[%clk
0:06:57]} 27. Qg2 {[%clk 0:01:05]} 27... Qxg2+ {[%clk 0:07:19]} 28. Kxg2 {[%clk
0:01:29]} 28... Ne5+ {[%clk 0:07:47]} 29. Kh3 {[%clk 0:01:28]} 29... Nxf7 {[%clk
0:08:13]} 0-1

[Variant "Standard"]
[Site "Europe Echecs"]

[Event "Championnat du monde jeunes U12"]
[Date "2024.11.20"]
[White "El Zein, Bassam"]
[Black "Aadik Theophane Lenin"]
[WhiteElo "1947"]
[BlackElo "1857"]
[Round "6.37"]
[Result "0-1"]
[TimeControl "5400+30"]

1. d4 {[%clk 1:30:58]} 1... Nf6 {[%clk 1:30:17]} 2. Bg5 {[%clk 1:31:22]} 2... d5
{[%clk 1:30:04]} 3. e3 {[%clk 1:31:44]} 3... g6 {[%clk 1:28:01]} 4. Nd2 {[%clk
1:31:26]} 4... Bg7 {[%clk 1:28:13]} 5. Ngf3 {[%clk 1:31:45]} 5... O-O {[%clk
1:25:33]} 6. c4 {[%clk 1:31:15]} 6... c6 {[%clk 1:14:11]} 7. Bd3 {[%clk
1:30:24]} 7... dxc4 {[%clk 1:10:23]} 8. Nxc4 {[%clk 1:30:09]} 8... b5 {[%clk
1:08:46]} 9. Nce5 {[%clk 1:30:19]} 9... Nd5 {[%clk 1:07:43]} 10. Qc1 {[%clk
1:25:43]} 10... f6 {[%clk 0:53:48]} 11. Nxc6 {[%clk 1:24:32]} 11... Nxc6 {[%clk
0:54:01]} 12. Qxc6 {[%clk 1:25:00]} 12... Nb4 {[%clk 0:54:23]} 13. Qxa8 {[%clk
1:22:36]} 13... Nxd3+ {[%clk 0:54:04]} 14. Ke2 {[%clk 1:22:52]} 14... fxg5
{[%clk 0:54:29]} 15. Qxa7 {[%clk 1:23:05]} 15... g4 {[%clk 0:50:04]} 16. Nd2
{[%clk 1:22:01]} 16... Nxf2 {[%clk 0:48:15]} 17. Rhf1 {[%clk 1:22:06]} 17... g3
{[%clk 0:48:44]} 18. hxg3 Bg4+ {[%clk 0:49:12]} 19. Nf3 {[%clk 1:22:40]} 19...
Ne4 {[%clk 0:49:34]} 20. Rfe1 {[%clk 1:20:42]} 20... Qd5 {[%clk 0:48:26]} 21.
Qa3 {[%clk 1:20:18]} 21... Nxg3+ {[%clk 0:45:17]} 22. Kd2 {[%clk 1:19:57]} 22...
Ne4+ {[%clk 0:45:46]} 23. Kd1 {[%clk 1:19:21]} 23... Rxf3 {[%clk 0:45:20]} 24.
gxf3 {[%clk 1:19:07]} 24... Bxf3+ {[%clk 0:45:49]} 25. Re2 {[%clk 1:18:21]}
25... Ng3 {[%clk 0:46:09]} 26. Kd2 {[%clk 1:18:24]} 26... Nxe2 {[%clk 0:43:07]}
27. Qb3 {[%clk 1:18:46]} 27... Qxb3 {[%clk 0:43:34]} 28. axb3 {[%clk 1:19:11]}
28... g5 {[%clk 0:43:20]} 29. Ke1 {[%clk 1:19:23]} 29... g4 {[%clk 0:43:45]} 30.
Ra5 {[%clk 1:18:29]} 30... g3 {[%clk 0:43:54]} 31. Rxb5 {[%clk 1:18:50]} 31...
g2 {[%clk 0:44:12]} 32. Rg5 {[%clk 1:19:15]} 32... g1=Q+ {[%clk 0:44:36]} 33.
Rxg1 {[%clk 1:19:40]} 33... Nxg1 {[%clk 0:45:01]} 34. Kf2 {[%clk 1:20:05]} 34...
Bd5 {[%clk 0:45:27]} 35. Kxg1 {[%clk 1:20:31]} 35... Bxb3 {[%clk 0:45:53]} 36.
Kf2 {[%clk 1:20:48]} 36... e5 {[%clk 0:46:19]} 37. dxe5 {[%clk 1:21:07]} 37...
Bxe5 {[%clk 0:46:47]} 38. Kf3 {[%clk 1:21:21]} 38... Bxb2 {[%clk 0:47:13]} 39.
e4 {[%clk 1:21:46]} 39... Be5 {[%clk 0:47:39]} 40. Kg4 {[%clk 1:22:11]} 40...
Be6+ {[%clk 0:48:05]} 41. Kh5 {[%clk 1:22:32]} 41... Bf6 {[%clk 0:48:03]} 42.
Kh6 {[%clk 1:22:46]} 42... Bf7 {[%clk 0:48:21]} 43. e5 {[%clk 1:23:11]} 43...
Bxe5 {[%clk 0:48:51]} 44. Kg5 {[%clk 1:23:34]} 44... Bg6 {[%clk 0:49:17]} 45.
Kh4 {[%clk 1:23:56]} 45... h5 {[%clk 0:49:44]} 46. Kh3 {[%clk 1:24:18]} 46...
Bf6 {[%clk 0:50:09]} 47. Kg3 {[%clk 1:24:44]} 47... Bf5 {[%clk 0:50:33]} 48. Kf4
{[%clk 1:25:10]} 48... Be6 {[%clk 0:51:02]} 49. Kg3 {[%clk 1:25:33]} 49... h4+
{[%clk 0:51:31]} 50. Kh2 {[%clk 1:25:57]} 50... h3 {[%clk 0:52:00]} 51. Kh1
{[%clk 1:26:09]} 51... Be5 {[%clk 0:52:26]} 52. Kg1 {[%clk 1:26:33]} 52... Bg3
{[%clk 0:52:49]} 53. Kf1 {[%clk 1:26:54]} 53... Bg4 {[%clk 0:53:15]} 54. Kg1
{[%clk 1:27:16]} 54... Be2 {[%clk 0:53:44]} 55. Kh1 {[%clk 1:27:36]} 55... Bf3+
{[%clk 0:54:11]} 56. Kg1 {[%clk 1:28:01]} 56... h2+ {[%clk 0:54:39]} 57. Kf1
{[%clk 1:28:24]} 57... h1=R# {[%clk 0:55:06]} 0-1

[Variant "Standard"]
[Site "Europe Echecs"]

[Event "Championnat du monde jeunes U12"]
[Date "2024.11.20"]
[White "Mai, Duc Kien"]
[Black "Chen, Jun-Wei"]
[WhiteElo "1771"]
[BlackElo "1907"]
[Round "6.38"]
[Result "1/2-1/2"]
[TimeControl "5400+30"]

1. e4 {[%clk 1:30:57]} 1... c5 {[%clk 1:30:49]} 2. Nf3 {[%clk 1:31:19]} 2... e6
{[%clk 1:31:10]} 3. d4 {[%clk 1:31:37]} 3... cxd4 {[%clk 1:31:31]} 4. Nxd4
{[%clk 1:32:03]} 4... Nc6 {[%clk 1:31:52]} 5. Nc3 {[%clk 1:32:25]} 5... Qc7
{[%clk 1:32:06]} 6. a3 {[%clk 1:27:06]} 6... a6 {[%clk 1:32:21]} 7. Be3 {[%clk
1:27:22]} 7... b5 {[%clk 1:32:18]} 8. Qd2 {[%clk 1:24:11]} 8... Bb7 {[%clk
1:32:00]} 9. O-O-O {[%clk 1:20:11]} 9... Nf6 {[%clk 1:26:02]} 10. f3 {[%clk
1:20:26]} 10... Rc8 {[%clk 1:24:13]} 11. Nxc6 {[%clk 1:14:37]} 11... Bxc6 {[%clk
1:23:53]} 12. g4 {[%clk 1:11:14]} 12... h6 {[%clk 1:19:06]} 13. Kb1 {[%clk
1:03:59]} 13... b4 {[%clk 1:07:08]} 14. axb4 {[%clk 1:04:16]} 14... Bxb4 {[%clk
1:07:32]} 15. Qd4 {[%clk 0:55:50]} 15... Ba5 {[%clk 0:54:38]} 16. h4 {[%clk
0:39:29]} 16... d5 {[%clk 0:48:29]} 17. exd5 {[%clk 0:35:03]} 17... Nxd5 {[%clk
0:48:28]} 18. Nxd5 {[%clk 0:32:10]} 18... Bxd5 {[%clk 0:48:43]} 19. Bd3 {[%clk
0:32:37]} 19... O-O {[%clk 0:44:55]} 20. Rhf1 {[%clk 0:26:10]} 20... Rfd8 {[%clk
0:42:44]} 21. Qf4 {[%clk 0:22:00]} 21... Qb7 {[%clk 0:41:58]} 22. Be4 {[%clk
0:13:29]} 22... Bc3 {[%clk 0:38:33]} 23. Bc1 {[%clk 0:12:42]} 23... Rb8 {[%clk
0:32:43]} 24. Bxd5 {[%clk 0:12:20]} 24... exd5 {[%clk 0:31:52]} 25. b3 {[%clk
0:12:18]} 25... d4 {[%clk 0:32:13]} 26. Rd3 {[%clk 0:10:08]} 26... Rdc8 {[%clk
0:13:48]} 27. Bb2 {[%clk 0:10:11]} 27... Bxb2 {[%clk 0:13:02]} 28. Kxb2 {[%clk
0:10:35]} 28... Qc6 {[%clk 0:13:05]} 29. Qd2 {[%clk 0:09:42]} 29... a5 {[%clk
0:11:26]} 30. Rxd4 {[%clk 0:03:21]} 30... a4 {[%clk 0:11:45]} 31. Rc1 {[%clk
0:03:17]} 31... g6 {[%clk 0:08:02]} 32. g5 {[%clk 0:01:19]} 32... h5 {[%clk
0:06:52]} 33. f4 {[%clk 0:01:14]} 33... axb3 {[%clk 0:03:05]} 34. cxb3 {[%clk
0:01:35]} 34... Qxc1+ {[%clk 0:03:27]} 35. Qxc1 {[%clk 0:02:03]} 35... Rxc1
{[%clk 0:03:41]} 36. Kxc1 {[%clk 0:02:32]} 36... Rxb3 {[%clk 0:04:04]} 37. Kd2
{[%clk 0:01:59]} 37... Rh3 {[%clk 0:04:27]} 38. Rd6 {[%clk 0:01:54]} 38... Rxh4
{[%clk 0:04:38]} 39. Ke3 {[%clk 0:02:21]} 39... Rh3+ {[%clk 0:04:53]} 40. Kf2
{[%clk 0:02:44]} 40... Kf8 {[%clk 0:05:06]} 41. Kg2 {[%clk 0:02:54]} 41... Ra3
{[%clk 0:04:58]} 42. Rb6 {[%clk 0:01:50]} 42... Rd3 {[%clk 0:05:02]} 43. Kf2
{[%clk 0:01:07]} 43... Ke7 {[%clk 0:05:25]} 44. Kg2 {[%clk 0:01:03]} 44... Rd6
{[%clk 0:05:46]} 45. Rb7+ {[%clk 0:01:27]} 45... Ke6 {[%clk 0:06:12]} 46. Rb5
{[%clk 0:01:52]} 46... f6 {[%clk 0:03:57]} 47. gxf6 {[%clk 0:02:17]} 47... Kxf6
{[%clk 0:04:22]} 48. Kg3 {[%clk 0:02:34]} 48... Rd3+ {[%clk 0:04:07]} 49. Kg2
{[%clk 0:02:18]} 49... Ke6 {[%clk 0:03:51]} 50. Re5+ {[%clk 0:02:28]} 50... Kf6
{[%clk 0:04:13]} 51. Ra5 {[%clk 0:02:50]} 51... Kf7 {[%clk 0:04:00]} 52. Rb5
{[%clk 0:02:33]} 52... Rd6 {[%clk 0:03:07]} 53. Kg3 {[%clk 0:02:35]} 53... Kg7
{[%clk 0:02:17]} 54. Kg2 {[%clk 0:01:48]} 54... Kh6 {[%clk 0:02:33]} 55. Kg3
{[%clk 0:02:08]} 55... Rd3+ {[%clk 0:02:32]} 56. Kg2 {[%clk 0:01:45]} 56... h4
{[%clk 0:02:20]} 57. Ra5 {[%clk 0:01:32]} 57... Rg3+ {[%clk 0:02:40]} 58. Kf2
{[%clk 0:01:52]} 58... Rb3 {[%clk 0:02:24]} 59. Kg2 {[%clk 0:02:15]} 59... h3+
{[%clk 0:01:48]} 60. Kh2 {[%clk 0:02:33]} 60... Rf3 {[%clk 0:02:06]} 61. Rb5
{[%clk 0:02:43]} 61... Rxf4 {[%clk 0:02:21]} 62. Kxh3 {[%clk 0:03:10]} 62... Ra4
{[%clk 0:02:33]} 63. Kg3 {[%clk 0:03:25]} 63... Ra3+ {[%clk 0:02:36]} 64. Kg4
{[%clk 0:03:02]} 64... Ra1 {[%clk 0:03:00]} 65. Rb6 {[%clk 0:02:03]} 65... Ra4+
{[%clk 0:03:20]} 66. Kg3 {[%clk 0:02:27]} 66... Kh5 {[%clk 0:03:46]} 67. Rb5+
{[%clk 0:02:41]} 67... g5 {[%clk 0:04:10]} 68. Rb3 {[%clk 0:03:01]} 68... Ra1
{[%clk 0:04:28]} 69. Rc3 {[%clk 0:03:01]} 69... Rg1+ {[%clk 0:04:51]} 70. Kh2
{[%clk 0:03:23]} 70... Rg4 {[%clk 0:05:14]} 71. Kh3 {[%clk 0:03:46]} 71... Re4
{[%clk 0:05:34]} 72. Kg3 {[%clk 0:04:04]} 72... Rg4+ {[%clk 0:05:54]} 73. Kh3
{[%clk 0:04:30]} 73... Re4 {[%clk 0:06:21]} 74. Kg3 {[%clk 0:04:57]} 74... Rg4+
{[%clk 0:06:46]} 75. Kh3 {[%clk 0:05:24]} 75... Re4 {[%clk 0:07:11]} 1/2-1/2

[Variant "Standard"]
[Site "Europe Echecs"]

[Event "Championnat du monde jeunes U12"]
[Date "2024.11.20"]
[White "Tona, Leonardo"]
[Black "Konstantinides, Savvas"]
[WhiteElo "1906"]
[BlackElo "1839"]
[Round "6.39"]
[Result "1-0"]
[TimeControl "5400+30"]

1. e4 {[%clk 1:30:57]} 1... c5 {[%clk 1:30:56]} 2. Nc3 {[%clk 1:31:23]} 2... a6
{[%clk 1:31:19]} 3. f4 {[%clk 1:31:47]} 3... b5 {[%clk 1:31:42]} 4. g3 {[%clk
1:32:00]} 4... Bb7 {[%clk 1:32:07]} 5. Bg2 {[%clk 1:32:16]} 5... e6 {[%clk
1:32:09]} 6. d3 {[%clk 1:32:29]} 6... Nf6 {[%clk 1:31:47]} 7. Nf3 {[%clk
1:32:34]} 7... d5 {[%clk 1:31:56]} 8. e5 {[%clk 1:32:58]} 8... d4 {[%clk
1:28:06]} 9. Ne2 {[%clk 1:29:50]} 9... Nd5 {[%clk 1:26:32]} 10. O-O {[%clk
1:27:52]} 10... h5 {[%clk 1:24:07]} 11. h3 {[%clk 1:28:03]} 11... Nd7 {[%clk
1:13:10]} 12. Bd2 {[%clk 1:24:49]} 12... Rc8 {[%clk 1:10:41]} 13. Kh2 {[%clk
1:22:52]} 13... Be7 {[%clk 1:09:31]} 14. Qe1 {[%clk 1:21:30]} 14... Qc7 {[%clk
0:56:29]} 15. a3 {[%clk 1:17:26]} 15... h4 {[%clk 0:53:05]} 16. gxh4 {[%clk
1:10:53]} 16... Nf8 {[%clk 0:52:04]} 17. Qg3 {[%clk 0:57:29]} 17... Ng6 {[%clk
0:51:51]} 18. Ng5 {[%clk 0:57:36]} 18... Nxh4 {[%clk 0:51:20]} 19. Be4 {[%clk
0:57:11]} 19... Ne3 {[%clk 0:48:39]} 20. Bxe3 {[%clk 0:56:19]} 20... Bxe4 {[%clk
0:47:27]} 21. dxe4 {[%clk 0:50:29]} 21... dxe3 {[%clk 0:47:17]} 22. Nf3 {[%clk
0:45:11]} 22... Ng6 {[%clk 0:45:04]} 23. Rad1 {[%clk 0:39:20]} 23... Rd8 {[%clk
0:41:49]} 24. Rxd8+ {[%clk 0:35:59]} 24... Kxd8 {[%clk 0:38:41]} 25. Rd1+ {[%clk
0:35:57]} 25... Kc8 {[%clk 0:39:02]} 26. f5 {[%clk 0:35:42]} 26... exf5 {[%clk
0:38:40]} 27. exf5 {[%clk 0:36:05]} 27... Bh4 {[%clk 0:39:00]} 28. Nxh4 {[%clk
0:36:23]} 28... Nxh4 {[%clk 0:39:19]} 29. Qxg7 {[%clk 0:35:06]} 29... Qxe5+
{[%clk 0:37:36]} 30. Qxe5 {[%clk 0:35:14]} 30... Nf3+ {[%clk 0:37:57]} 31. Kg3
{[%clk 0:35:22]} 31... Nxe5 {[%clk 0:38:08]} 32. Rd5 {[%clk 0:35:11]} 32... Nd7
{[%clk 0:37:08]} 33. Rd6 {[%clk 0:35:33]} 33... a5 {[%clk 0:37:17]} 34. Ra6
{[%clk 0:35:44]} 34... Kb7 {[%clk 0:37:24]} 35. Rxa5 {[%clk 0:34:46]} 35... Kc6
{[%clk 0:26:54]} 36. Ra7 {[%clk 0:33:37]} 36... Rd8 {[%clk 0:26:47]} 37. Ra6+
{[%clk 0:31:26]} 37... Kd5 {[%clk 0:26:54]} 38. Kf4 {[%clk 0:28:12]} 38... Rh8
{[%clk 0:22:28]} 39. Nc3+ {[%clk 0:28:23]} 39... Kc4 {[%clk 0:22:21]} 40. Rd6
{[%clk 0:28:38]} 40... b4 {[%clk 0:17:25]} 41. axb4 {[%clk 0:28:33]} 41... cxb4
{[%clk 0:17:47]} 42. Rc6+ {[%clk 0:27:10]} 42... Nc5 {[%clk 0:16:49]} 43. Ne2
{[%clk 0:26:35]} 43... Rxh3 {[%clk 0:16:25]} 44. Ke5 {[%clk 0:24:15]} 44... b3
{[%clk 0:14:54]} 45. cxb3+ {[%clk 0:17:29]} 45... Kb5 {[%clk 0:14:04]} 46. Nd4+
{[%clk 0:17:38]} 46... Kb4 {[%clk 0:14:16]} 47. Rb6+ {[%clk 0:18:03]} 47... Ka5
{[%clk 0:14:37]} 48. Rb5+ {[%clk 0:18:28]} 48... Ka6 {[%clk 0:15:01]} 49. Rxc5
{[%clk 0:18:52]} 49... e2 {[%clk 0:15:21]} 50. Nxe2 {[%clk 0:18:46]} 50... Re3+
{[%clk 0:15:47]} 51. Kf6 {[%clk 0:19:07]} 51... Rxe2 {[%clk 0:16:11]} 52. Kxf7
{[%clk 0:19:31]} 52... Kb6 {[%clk 0:16:34]} 53. Rc3 {[%clk 0:19:50]} 53... Rxb2
{[%clk 0:16:59]} 54. f6 {[%clk 0:20:15]} 1-0

[Variant "Standard"]
[Site "Europe Echecs"]

[Event "Championnat du monde jeunes U12"]
[Date "2024.11.20"]
[White "Leht, Karl Samuel"]
[Black "Belyaletdinov, Leonard"]
[WhiteElo "1701"]
[BlackElo "1903"]
[Round "6.40"]
[Result "0-1"]
[TimeControl "5400+30"]

1. d4 {[%clk 1:30:59]} 1... d5 {[%clk 1:30:56]} 2. c4 {[%clk 1:31:24]} 2... e6
{[%clk 1:31:22]} 3. Nc3 {[%clk 1:31:49]} 3... Nf6 {[%clk 1:31:46]} 4. Bf4 {[%clk
1:31:25]} 4... Be7 {[%clk 1:29:57]} 5. e3 {[%clk 1:31:49]} 5... O-O {[%clk
1:30:18]} 6. Nf3 {[%clk 1:32:17]} 6... b6 {[%clk 1:30:35]} 7. Rc1 {[%clk
1:32:12]} 7... Bb7 {[%clk 1:26:37]} 8. Be2 {[%clk 1:32:00]} 8... Nbd7 {[%clk
1:24:53]} 9. O-O {[%clk 1:32:10]} 9... Rc8 {[%clk 1:17:27]} 10. cxd5 {[%clk
1:28:59]} 10... Nxd5 {[%clk 1:15:56]} 11. Nxd5 {[%clk 1:29:22]} 11... exd5
{[%clk 1:16:21]} 12. Qb3 {[%clk 1:26:35]} 12... Nf6 {[%clk 1:11:11]} 13. Rc2
{[%clk 1:26:30]} 13... Ne4 {[%clk 0:58:00]} 14. Rfc1 {[%clk 1:26:30]} 14... Bd6
{[%clk 0:50:02]} 15. Ne5 {[%clk 1:26:30]} 15... c5 {[%clk 0:33:58]} 16. Qa4
{[%clk 1:23:00]} 16... f6 {[%clk 0:22:50]} 17. f3 {[%clk 1:00:30]} 17... Qe7
{[%clk 0:16:12]} 18. Nd3 {[%clk 0:53:30]} 18... Bc6 {[%clk 0:14:52]} 19. Qa3
{[%clk 0:52:30]} 19... c4 {[%clk 0:11:25]} 20. Bxd6 {[%clk 0:52:43]} 20... Nxd6
{[%clk 0:11:51]} 21. Nf2 {[%clk 0:52:28]} 21... Qd7 {[%clk 0:10:46]} 22. e4
{[%clk 0:50:25]} 22... Nb5 {[%clk 0:11:05]} 23. Qe3 {[%clk 0:50:45]} 23... Rfe8
{[%clk 0:10:42]} 24. Qd2 {[%clk 0:50:43]} 24... dxe4 {[%clk 0:10:48]} 25. Bxc4+
{[%clk 0:50:30]} 25... Kh8 {[%clk 0:11:01]} 26. d5 {[%clk 0:41:52]} 26... e3
{[%clk 0:10:39]} 27. Qd3 {[%clk 0:42:12]} 27... exf2+ {[%clk 0:10:47]} 28. Kxf2
{[%clk 0:41:44]} 28... Rcd8 {[%clk 0:10:07]} 29. Rd2 {[%clk 0:40:20]} 29... Qe7
{[%clk 0:09:02]} 30. Rcd1 {[%clk 0:29:04]} 30... Qc5+ {[%clk 0:08:07]} 31. Kf1
{[%clk 0:29:25]} 31... Bd7 {[%clk 0:07:07]} 32. b4 {[%clk 0:28:45]} 32... Qxb4
{[%clk 0:06:42]} 33. Rb1 {[%clk 0:28:53]} 33... Qd6 {[%clk 0:05:47]} 34. Bxb5
{[%clk 0:28:21]} 34... Qxh2 {[%clk 0:05:32]} 35. Bxd7 {[%clk 0:25:39]} 35...
Rxd7 {[%clk 0:05:46]} 36. Qf5 {[%clk 0:22:40]} 36... Qh1+ {[%clk 0:05:56]} 37.
Kf2 {[%clk 0:22:52]} 37... Qh4+ {[%clk 0:06:24]} 38. Kf1 {[%clk 0:22:41]} 38...
Rde7 {[%clk 0:06:47]} 0-1

[Variant "Standard"]
[Site "Europe Echecs"]

[Event "Championnat du monde jeunes U12"]
[Date "2024.11.20"]
[White "Huseynov, Ahmed"]
[Black "Padure, Dragos-Alexandru"]
[WhiteElo "1886"]
[BlackElo "1822"]
[Round "6.42"]
[Result "1/2-1/2"]
[TimeControl "5400+30"]

1. d4 {[%clk 1:30:57]} 1... Nf6 {[%clk 1:30:45]} 2. c4 {[%clk 1:31:20]} 2... g6
{[%clk 1:31:02]} 3. Nf3 {[%clk 1:31:39]} 3... Bg7 {[%clk 1:31:10]} 4. g3 {[%clk
1:32:04]} 4... O-O {[%clk 1:30:46]} 5. Bg2 {[%clk 1:32:25]} 5... c6 {[%clk
1:31:07]} 6. O-O {[%clk 1:32:30]} 6... d5 {[%clk 1:31:31]} 7. cxd5 {[%clk
1:32:54]} 7... cxd5 {[%clk 1:31:33]} 8. Ne5 {[%clk 1:33:20]} 8... Nc6 {[%clk
1:25:19]} 9. Nc3 {[%clk 1:31:53]} 9... e6 {[%clk 1:14:27]} 10. Be3 {[%clk
1:08:23]} 10... Nxe5 {[%clk 1:10:09]} 11. dxe5 {[%clk 1:08:46]} 11... Ng4 {[%clk
1:09:43]} 12. Bc5 {[%clk 1:09:08]} 12... Re8 {[%clk 1:06:33]} 13. f4 {[%clk
1:08:04]} 13... Nh6 {[%clk 0:58:21]} 14. e4 {[%clk 1:07:35]} 14... Qc7 {[%clk
0:45:35]} 15. Bf2 {[%clk 0:58:13]} 15... dxe4 {[%clk 0:39:33]} 16. Nxe4 {[%clk
0:58:30]} 16... Rd8 {[%clk 0:37:39]} 17. Qe2 {[%clk 0:54:10]} 17... Bd7 {[%clk
0:35:12]} 18. Rac1 {[%clk 0:52:30]} 18... Qa5 {[%clk 0:29:18]} 19. Nd6 {[%clk
0:52:16]} 19... Bc6 {[%clk 0:23:10]} 20. Bxc6 {[%clk 0:23:42]} 20... bxc6 {[%clk
0:23:37]} 21. b3 {[%clk 0:23:23]} 21... Nf5 {[%clk 0:18:23]} 22. Nxf5 {[%clk
0:13:29]} 22... gxf5 {[%clk 0:16:22]} 23. Rxc6 {[%clk 0:13:45]} 23... Rd2 {[%clk
0:14:56]} 24. Ra6 {[%clk 0:13:16]} 24... Qd5 {[%clk 0:11:35]} 25. Qc4 {[%clk
0:08:31]} 25... Qxc4 {[%clk 0:10:20]} 26. bxc4 {[%clk 0:08:55]} 26... Rc2 {[%clk
0:10:33]} 27. Rb1 {[%clk 0:01:52]} 27... Rxc4 {[%clk 0:09:04]} 28. Rb7 {[%clk
0:02:18]} 28... Bf8 {[%clk 0:08:50]} 29. Raxa7 {[%clk 0:02:37]} 29... Rxa7
{[%clk 0:09:14]} 30. Rxa7 {[%clk 0:03:00]} 30... Rc1+ {[%clk 0:08:16]} 31. Kg2
{[%clk 0:03:26]} 31... Rc2 {[%clk 0:08:42]} 32. Ra8 {[%clk 0:03:11]} 32... Kg7
{[%clk 0:08:52]} 33. Kf3 {[%clk 0:02:56]} 33... Rc3+ {[%clk 0:08:31]} 34. Ke2
{[%clk 0:01:56]} 34... Rc2+ {[%clk 0:08:28]} 35. Kf1 {[%clk 0:01:22]} 35... Rc1+
{[%clk 0:08:41]} 36. Kg2 {[%clk 0:01:29]} 36... Rc2 {[%clk 0:09:03]} 1/2-1/2

[Variant "Standard"]
[Site "Europe Echecs"]